fUSD/lending_fUSD_20241030
["ID","MTS","AMOUNT","RATE_DAILY","PERIOD"]
[341042571,1730301061408,-1098.19,0.00034794,5]
[341042572,1730301061418,-574.74,0.00034794,5]
[341042573,1730301061428,-500.0,0.00034794,5]
[341042574,1730301061438,-500.0,0.00034794,5]
[341042575,1730301061450,-541.34098944,0.00034794,5]
[341042576,1730301061459,-500.0,0.00034794,5]
[341042577,1730301061469,-500.0,0.00034794,5]
[341042578,1730301061479,-500.0,0.00034794,5]
[341042579,1730301061489,-546.7,0.00034794,5]
[341042580,1730301061499,-306.79054143,0.00034794,5]
[341042581,1730301061508,-500.0,0.00034794,5]
[341042582,1730301061518,-500.0,0.00034794,5]
[341042583,1730301061527,-500.0,0.00034794,5]
[341042584,1730301061537,-636.4,0.00034794,5]
[341042585,1730301061546,-500.0,0.00034794,5]
[341042586,1730301061556,-1397.76,0.00034794,5]
[341042587,1730301061565,-540.06,0.00034794,5]
[341042588,1730301061574,-500.0,0.00034794,5]
[341042589,1730301061583,-601.3,0.00034794,5]
[341042590,1730301061593,-701.17,0.00034794,5]
[341042591,1730301061602,-724.57,0.00034794,5]
[341042592,1730301061612,-1140.97,0.00034794,5]
[341042593,1730301061622,-1327.32,0.00034794,5]
[341042594,1730301061631,-500.0,0.00034794,5]
[341042595,1730301061641,-500.0,0.00034794,5]
[341042596,1730301061651,-794.59,0.00034794,5]
[341042597,1730301061659,-500.0,0.00034794,5]
[341042598,1730301061668,-650.16,0.00034794,5]
[341042599,1730301061677,-508.69,0.00034794,5]
[341042600,1730301061685,-553.9,0.00034794,5]
[341042601,1730301061699,-500.0,0.00034794,5]
[341042602,1730301061709,-979.14,0.00034794,5]
[341042603,1730301061723,-604.38,0.00034794,30]
[341042604,1730301061732,-500.0,0.00034794,5]
[341042605,1730301061742,-1224.33,0.00034794,5]
[341042606,1730301061752,-500.0,0.00034794,5]
[341042607,1730301061762,-595.3476836,0.00034794,5]
[341042608,1730301061772,-500.0,0.00034794,5]
[341042609,1730301061782,-902.67,0.00034794,5]
[341042610,1730301061791,-500.0,0.00034794,5]
[341042611,1730301061800,-234.51283862,0.00034794,5]
[341042612,1730301061811,-778.22,0.00034794,5]
[341042613,1730301061822,-500.0,0.00034794,5]
[341042614,1730301061831,-500.0,0.00034794,5]
[341042615,1730301061842,-500.0,0.00034794,5]
[341042616,1730301061852,-500.0,0.00034794,5]
[341042617,1730301061862,-500.0,0.00034794,5]
[341042618,1730301061872,-500.0,0.00034794,5]
[341042619,1730301061882,-500.0,0.00034794,5]
[341042620,1730301061892,-1335.04,0.00034794,5]
[341042621,1730301061901,-546.12,0.00034794,5]
[341042622,1730301061911,-500.0,0.00034794,5]
[341042623,1730301061920,-813.76,0.00034794,5]
[341042624,1730301061930,-500.0,0.00034794,5]
[341042625,1730301061939,-581.37,0.00034794,5]
[341042626,1730301061954,-500.0,0.00034794,5]
[341042627,1730301061964,-601.11,0.00034794,5]
[341042628,1730301061974,-500.0,0.00034794,5]
[341042629,1730301061983,-500.0,0.00034794,5]
[341042630,1730301061992,-500.0,0.00034794,5]
[341042631,1730301062002,-500.0,0.00034794,5]
[341042632,1730301062013,-500.0,0.00034794,5]
[341042633,1730301062023,-3900.02,0.00034794,5]
[341042634,1730301062033,-500.0,0.00034794,5]
[341042635,1730301062043,-500.0,0.00034794,5]
[341042636,1730301062052,-3956.8,0.00034794,5]
[341042637,1730301062062,-1033.49,0.00034794,5]
[341042638,1730301062072,-2561.17,0.00034794,5]
[341042639,1730301062081,-5020.91,0.00034794,5]
[341042640,1730301062091,-1504.38,0.00034794,5]
[341042641,1730301062101,-500.0,0.00034794,5]
[341042642,1730301062111,-150.0,0.000348,2]
[341042643,1730301062122,-150.0,0.00034804,2]
[341042644,1730301062131,-150.0,0.00034807,2]
[341042645,1730301062142,-150.0,0.00034809,2]
[341042646,1730301062152,-150.0,0.00034836,2]
[341042647,1730301062162,-150.0,0.00034845,2]
[341042648,1730301062172,-150.0,0.00034847,2]
[341042649,1730301062182,-299.55612369,0.00034849,120]
[341042650,1730301062196,-150.0,0.00034863,2]
[341042651,1730301062205,-150.0,0.00034879,2]
[341042652,1730301062215,-150.0,0.0003488,2]
[341042653,1730301062229,-150.0,0.00034883,2]
[341042654,1730301062239,-150.0,0.00034886,2]
[341042655,1730301062248,-150.0,0.00034886,2]
[341042656,1730301062259,-150.0,0.00034888,2]
[341042657,1730301062269,-150.0,0.00034892,2]
[341042658,1730301062279,-150.0,0.00034896,2]
[341042659,1730301062289,-1000.0,0.000349,2]
[341042660,1730301062300,-150.0,0.00034905,2]
[341042661,1730301062310,-150.0,0.00034909,2]
[341042662,1730301062320,-150.0,0.00034911,2]
[341042663,1730301062330,-150.0,0.00034914,2]
[341042664,1730301062340,-150.0,0.00034914,2]
[341042665,1730301062350,-150.0,0.00034917,2]
[341042666,1730301062360,-150.0,0.00034922,2]
[341042667,1730301062369,-150.0,0.00034922,2]
[341042668,1730301062379,-150.0,0.00034924,2]
[341042669,1730301062389,-7103.18,0.00034931,120]
[341042670,1730301062398,-150.0,0.00034932,2]
[341042671,1730301062408,-150.0,0.00034936,2]
[341042672,1730301062417,-150.0,0.00034965,2]
[341042673,1730301062427,-150.0,0.00034991,2]
[341042674,1730301062437,-683.15803933,0.00034997,2]
[341042675,1730301062450,-150135.1420975,0.00035,2]
[341042676,1730301062460,-2801.62179468,0.00035,2]
[341042677,1730301062470,-1889355.1710798,0.00035,30]
[341042678,1730301062480,-72205.41873346,0.00035,2]
[341042679,1730301062490,-1084.27,0.00035,14]
[341042680,1730301062500,-432.88,0.00035,7]
[341042681,1730301062510,-795.0,0.00035,20]
[341042682,1730301062520,-4741.20483769,0.00035,2]
[341042683,1730301062530,-4741.20483769,0.00035,2]
[341042684,1730301062539,-4741.20483769,0.00035,2]
[341042685,1730301062550,-1640.93,0.00035,2]
[341042686,1730301062560,-2000.0,0.00035,120]
[341042687,1730301062570,-6637.31399068,0.00035,10]
[341042688,1730301062580,-4271.03254963,0.00035,2]
[341042689,1730301062595,-397.0,0.00035,20]
[341042690,1730301062604,-1523.33569449,0.00035,2]
[341042691,1730301062614,-292.04870348,0.00035,2]
[341042692,1730301062624,-150.0,0.00035,22]
[341042693,1730301062634,-1421051.56154034,0.00035,30]
[341042694,1730301062646,-29265941.73584809,0.00035,30]
[341042695,1730301062655,-299.99999901,0.00035,2]
[341042696,1730301062665,-304.0,0.00035,3]
[341042697,1730301062674,-300.0,0.00035,2]
[341042698,1730301062684,-2061.23,0.00035,8]
[341042699,1730301062696,-542.0,0.00035068,5]
[341042700,1730301062706,-500.0,0.00035068,5]
[341042701,1730301062716,-500.0,0.00035068,5]
[341042702,1730301062726,-500.0,0.00035068,5]
[341042703,1730301062738,-500.0,0.00035068,5]
[341042704,1730301062748,-500.0,0.00035068,5]
[341042705,1730301062758,-1139.26,0.00035068,2]
[341042706,1730301062768,-600.73,0.00035068,5]
[341042707,1730301062778,-500.0,0.00035068,5]
[341042708,1730301062787,-879.74,0.00035068,5]
[341042709,1730301062797,-834.42,0.00035068,5]
[341042710,1730301062807,-500.0,0.00035068,5]
[341042711,1730301062818,-500.0,0.00035068,5]
[341042712,1730301062828,-500.0,0.00035068,5]
[341042713,1730301062837,-500.0,0.00035068,5]
[341042714,1730301062847,-500.0,0.00035068,5]
[341042715,1730301062856,-500.0,0.00035068,5]
[341042716,1730301062866,-500.0,0.00035068,5]
[341042717,1730301062876,-500.0,0.00035068,5]
[341042718,1730301062886,-541.52,0.00035068,5]
[341042719,1730301062896,-646.69,0.00035068,5]
[341042720,1730301062906,-599.58,0.00035068,5]
[341042721,1730301062915,-739.01,0.00035068,5]
[341042722,1730301062925,-644.7,0.00035068,5]
[341042723,1730301062935,-500.0,0.00035068,5]
[341042724,1730301062948,-610.76,0.00035068,5]
[341042725,1730301062958,-500.0,0.00035068,5]
[341042726,1730301062968,-500.0,0.00035068,5]
[341042727,1730301062978,-500.0,0.00035068,5]
[341042728,1730301062988,-500.0,0.00035068,5]
[341042729,1730301062998,-500.0,0.00035068,5]
[341042730,1730301063008,-1213.36,0.00035068,5]
[341042731,1730301063017,-500.0,0.00035068,5]
[341042732,1730301063027,-741.71,0.00035068,5]
[341042733,1730301063038,-500.0,0.00035068,5]
[341042734,1730301063048,-500.0,0.00035068,5]
[341042735,1730301063058,-500.0,0.00035068,5]
[341042736,1730301063067,-500.0,0.00035068,5]
[341042737,1730301063077,-791.34,0.00035068,5]
[341042738,1730301063087,-2165.19,0.00035068,5]
[341042739,1730301063097,-2507.94,0.00035068,5]
[341042740,1730301063107,-500.0,0.00035068,5]
[341042741,1730301063116,-500.0,0.00035068,5]
[341042742,1730301063126,-556.27,0.00035068,5]
[341042743,1730301063136,-500.0,0.00035068,5]
[341042744,1730301063147,-850.73,0.00035068,5]
[341042745,1730301063156,-500.0,0.00035068,5]
[341042746,1730301063167,-500.0,0.00035068,5]
[341042747,1730301063176,-500.0,0.00035068,5]
[341042748,1730301063187,-500.0,0.00035068,5]
[341042749,1730301063197,-594.99,0.00035068,5]
[341042750,1730301063208,-500.0,0.00035068,5]
[341042751,1730301063221,-500.0,0.00035068,5]
[341042752,1730301063230,-638.53,0.00035068,5]
[341042753,1730301063240,-765.24,0.00035068,5]
[341042754,1730301063249,-500.0,0.00035068,5]
[341042755,1730301063261,-500.0,0.00035068,5]
[341042756,1730301063271,-500.0,0.00035068,5]
[341042758,1730301063281,-500.0,0.00035068,5]
[341042759,1730301063291,-155.05568699,0.00035068,5]
[341042761,1730301063303,-726.09,0.00035068,5]
[341042762,1730301063313,-872.19,0.00035068,5]
[341042763,1730301063323,-1312.35,0.00035068,5]
[341042764,1730301063334,-452.63969096,0.00035068,5]
[341042765,1730301063345,-500.0,0.00035068,5]
[341042766,1730301063355,-500.0,0.00035068,5]
[341042767,1730301063366,-1481.81,0.00035068,5]
[341042768,1730301063375,-500.0,0.00035068,5]
[341042769,1730301063385,-500.0,0.00035068,5]
[341042770,1730301063395,-500.0,0.00035068,5]
[341042771,1730301063405,-662.44,0.00035068,5]
[341042772,1730301063415,-500.0,0.00035068,5]
[341042773,1730301063425,-500.0,0.00035068,5]
[341042774,1730301063435,-646.17,0.00035068,5]
[341042775,1730301063447,-500.0,0.00035068,5]
[341042776,1730301063457,-679.04,0.00035068,5]
[341042777,1730301063467,-500.0,0.00035068,5]
[341042778,1730301063478,-925.77,0.00035068,5]
[341042779,1730301063489,-500.0,0.00035068,5]
[341042780,1730301063499,-500.0,0.00035068,5]
[341042781,1730301063508,-854.36,0.00035068,5]
[341042782,1730301063519,-500.0,0.00035068,5]
[341042783,1730301063530,-524.7,0.00035068,5]
[341042784,1730301063540,-1022.86,0.00035068,5]
[341042785,1730301063550,-725.7,0.00035068,5]
[341042786,1730301063561,-500.0,0.00035068,5]
[341042787,1730301063571,-500.0,0.00035068,5]
[341042788,1730301063581,-500.0,0.00035068,5]
[341042789,1730301063591,-1018.14,0.00035068,5]
[341042790,1730301063602,-823.86,0.00035068,5]
[341042791,1730301063612,-500.0,0.00035068,5]
[341042792,1730301063623,-1098.19,0.00035068,5]
[341042793,1730301063634,-574.74,0.00035068,5]
[341042794,1730301063644,-500.0,0.00035068,5]
[341042795,1730301063656,-500.0,0.00035068,5]
[341042796,1730301063666,-500.0,0.00035068,5]
[341042797,1730301063677,-500.0,0.00035068,5]
[341042798,1730301063688,-614.03159076,0.00035068,5]
[341042799,1730301063702,-546.7,0.00035068,5]
[341042800,1730301063712,-500.0,0.00035068,5]
[341042801,1730301063722,-500.0,0.00035068,5]
[341042802,1730301063732,-500.0,0.00035068,5]
[341042803,1730301063744,-636.4,0.00035068,5]
[341042804,1730301063756,-500.0,0.00035068,5]
[341042805,1730301063766,-1397.76,0.00035068,5]
[341042806,1730301063777,-540.06,0.00035068,5]
[341042807,1730301063787,-500.0,0.00035068,5]
[341042808,1730301063797,-601.3,0.00035068,5]
[341042809,1730301063806,-701.17,0.00035068,5]
[341042810,1730301063817,-724.57,0.00035068,5]
[341042811,1730301063827,-1140.97,0.00035068,5]
[341042812,1730301063837,-1327.32,0.00035068,5]
[341042813,1730301063848,-500.0,0.00035068,5]
[341042814,1730301063858,-500.0,0.00035068,5]
[341042815,1730301063869,-794.59,0.00035068,5]
[341042816,1730301063879,-500.0,0.00035068,5]
[341042817,1730301063889,-650.16,0.00035068,5]
[341042818,1730301063899,-508.69,0.00035068,5]
[341042819,1730301063909,-553.9,0.00035068,5]
[341042820,1730301063919,-500.0,0.00035068,5]
[341042821,1730301063930,-979.14,0.00035068,5]
[341042822,1730301063940,-604.38,0.00035068,30]
[341042823,1730301063954,-500.0,0.00035068,5]
[341042824,1730301063965,-1224.33,0.00035068,5]
[341042825,1730301063975,-500.0,0.00035068,5]
[341042826,1730301063985,-902.67,0.00035068,5]
[341042827,1730301063995,-500.0,0.00035068,5]
[341042828,1730301064006,-778.22,0.00035068,5]
[341042829,1730301064017,-500.0,0.00035068,5]
[341042830,1730301064028,-500.0,0.00035068,5]
[341042831,1730301064038,-500.0,0.00035068,5]
[341042832,1730301064050,-500.0,0.00035068,5]
[341042833,1730301064062,-500.0,0.00035068,5]
[341042834,1730301064074,-500.0,0.00035068,5]
[341042835,1730301064085,-500.0,0.00035068,5]
[341042836,1730301064096,-1335.04,0.00035068,5]
[341042837,1730301064107,-546.12,0.00035068,5]
[341042838,1730301064118,-500.0,0.00035068,5]
[341042839,1730301064129,-813.76,0.00035068,5]
[341042840,1730301064139,-500.0,0.00035068,5]
[341042841,1730301064151,-581.37,0.00035068,5]
[341042842,1730301064164,-500.0,0.00035068,5]
[341042843,1730301064175,-601.11,0.00035068,5]
[341042844,1730301064186,-500.0,0.00035068,5]
[341042845,1730301064202,-500.0,0.00035068,5]
[341042846,1730301064218,-500.0,0.00035068,5]
[341042847,1730301064229,-500.0,0.00035068,5]
[341042848,1730301064240,-500.0,0.00035068,5]
[341042849,1730301064256,-3900.02,0.00035068,5]
[341042850,1730301064272,-500.0,0.00035068,5]
[341042851,1730301064457,-500.0,0.00035068,5]
[341042852,1730301064468,-3956.8,0.00035068,5]
[341042853,1730301064478,-1033.49,0.00035068,5]
[341042854,1730301064489,-2561.17,0.00035068,5]
[341042855,1730301064499,-5020.91,0.00035068,5]
[341042856,1730301064509,-1504.38,0.00035068,5]
[341042857,1730301064519,-500.0,0.00035068,5]
[341042858,1730301064529,-500.0,0.00035073,5]
[341042859,1730301064539,-178.58,0.0003522,2]
[341042860,1730301064550,-1000.0,0.000353,7]
[341042861,1730301064560,-542.0,0.00035342,5]
[341042862,1730301064571,-500.0,0.00035342,5]
[341042863,1730301064582,-500.0,0.00035342,5]
[341042864,1730301064592,-500.0,0.00035342,5]
[341042865,1730301064602,-500.0,0.00035342,5]
[341042866,1730301064612,-549.03219065,0.00035342,5]
[341042867,1730301064623,-1139.26,0.00035342,2]
[341042868,1730301064633,-600.73,0.00035342,5]
[341042869,1730301064643,-500.0,0.00035342,5]
[341042870,1730301064653,-879.74,0.00035342,5]
[341042871,1730301064663,-834.42,0.00035342,5]
[341042872,1730301064672,-500.0,0.00035342,5]
[341042873,1730301064682,-500.0,0.00035342,5]
[341042874,1730301064696,-500.0,0.00035342,5]
[341042875,1730301064705,-500.0,0.00035342,5]
[341042876,1730301064715,-500.0,0.00035342,5]
[341042877,1730301064725,-500.0,0.00035342,5]
[341042878,1730301064735,-500.0,0.00035342,5]
[341042879,1730301064745,-541.52,0.00035342,5]
[341042880,1730301064755,-646.69,0.00035342,5]
[341042881,1730301064764,-599.58,0.00035342,5]
[341042882,1730301064774,-739.01,0.00035342,5]
[341042883,1730301064784,-644.7,0.00035342,5]
[341042884,1730301064794,-500.0,0.00035342,5]
[341042885,1730301064803,-610.76,0.00035342,5]
[341042886,1730301064813,-500.0,0.00035342,5]
[341042887,1730301064823,-500.0,0.00035342,5]
[341042888,1730301064832,-500.0,0.00035342,5]
[341042889,1730301064842,-500.0,0.00035342,5]
[341042890,1730301064853,-500.0,0.00035342,5]
[341042891,1730301064863,-1213.36,0.00035342,5]
[341042892,1730301064873,-500.0,0.00035342,5]
[341042893,1730301064883,-741.71,0.00035342,5]
[341042894,1730301064893,-285.18886565,0.00035342,5]
[341042895,1730301064903,-500.0,0.00035342,5]
[341042896,1730301064912,-500.0,0.00035342,5]
[341042897,1730301064922,-500.0,0.00035342,5]
[341042898,1730301064932,-791.34,0.00035342,5]
[341042899,1730301064942,-2165.19,0.00035342,5]
[341042900,1730301064953,-2507.94,0.00035342,5]
[341042901,1730301064963,-500.0,0.00035342,5]
[341042902,1730301064972,-384.19725552,0.00035342,5]
[341042903,1730301064982,-556.27,0.00035342,5]
[341042904,1730301064993,-500.0,0.00035342,5]
[341042905,1730301065002,-850.73,0.00035342,5]
[341042906,1730301065012,-500.0,0.00035342,5]
[341042907,1730301065024,-500.0,0.00035342,5]
[341042908,1730301065035,-500.0,0.00035342,5]
[341042909,1730301065045,-500.0,0.00035342,5]
[341042910,1730301065055,-594.99,0.00035342,5]
[341042911,1730301065065,-500.0,0.00035342,5]
[341042912,1730301065075,-500.0,0.00035342,5]
[341042913,1730301065085,-638.53,0.00035342,5]
[341042914,1730301065094,-765.24,0.00035342,5]
[341042915,1730301065104,-500.0,0.00035342,5]
[341042916,1730301065114,-500.0,0.00035342,5]
[341042917,1730301065124,-500.0,0.00035342,5]
[341042918,1730301065133,-500.0,0.00035342,5]
[341042919,1730301065143,-726.09,0.00035342,5]
[341042920,1730301065153,-872.19,0.00035342,5]
[341042921,1730301065163,-1312.35,0.00035342,5]
[341042922,1730301065172,-500.0,0.00035342,5]
[341042923,1730301065182,-500.0,0.00035342,5]
[341042924,1730301065191,-1481.81,0.00035342,5]
[341042925,1730301065207,-500.0,0.00035342,5]
[341042926,1730301065218,-500.0,0.00035342,5]
[341042927,1730301065231,-500.0,0.00035342,5]
[341042928,1730301065241,-662.44,0.00035342,5]
[341042929,1730301065251,-500.0,0.00035342,5]
[341042930,1730301065261,-500.0,0.00035342,5]
[341042931,1730301065270,-646.17,0.00035342,5]
[341042932,1730301065279,-500.0,0.00035342,5]
[341042933,1730301065289,-679.04,0.00035342,5]
[341042934,1730301065299,-500.0,0.00035342,5]
[341042935,1730301065309,-925.77,0.00035342,5]
[341042936,1730301065320,-500.55353089,0.00035342,5]
[341042937,1730301065329,-500.0,0.00035342,5]
[341042938,1730301065339,-854.36,0.00035342,5]
[341042939,1730301065349,-500.0,0.00035342,5]
[341042940,1730301065359,-524.7,0.00035342,5]
[341042941,1730301065368,-1022.86,0.00035342,5]
[341042942,1730301065377,-725.7,0.00035342,5]
[341042943,1730301065387,-500.0,0.00035342,5]
[341042944,1730301065397,-500.0,0.00035342,5]
[341042945,1730301065407,-500.0,0.00035342,5]
[341042946,1730301065417,-1018.14,0.00035342,5]
[341042947,1730301065427,-823.86,0.00035342,5]
[341042948,1730301065437,-500.0,0.00035342,5]
[341042949,1730301065450,-1098.19,0.00035342,5]
[341042950,1730301065460,-574.74,0.00035342,5]
[341042951,1730301065470,-500.0,0.00035342,5]
[341042952,1730301065480,-500.0,0.00035342,5]
[341042953,1730301065490,-500.0,0.00035342,5]
[341042954,1730301065500,-500.0,0.00035342,5]
[341042955,1730301065510,-546.7,0.00035342,5]
[341042956,1730301065520,-500.0,0.00035342,5]
[341042957,1730301065530,-500.0,0.00035342,5]
[341042958,1730301065540,-500.0,0.00035342,5]
[341042959,1730301065551,-636.4,0.00035342,5]
[341042960,1730301065560,-500.0,0.00035342,5]
[341042961,1730301065571,-1397.76,0.00035342,5]
[341042962,1730301065580,-540.06,0.00035342,5]
[341042963,1730301065590,-500.0,0.00035342,5]
[341042964,1730301065599,-601.3,0.00035342,5]
[341042965,1730301065609,-701.17,0.00035342,5]
[341042966,1730301065618,-724.57,0.00035342,5]
[341042967,1730301065628,-1140.97,0.00035342,5]
[341042968,1730301065638,-1327.32,0.00035342,5]
[341042969,1730301065647,-500.0,0.00035342,5]
[341042970,1730301065657,-500.0,0.00035342,5]
[341042971,1730301065667,-794.59,0.00035342,5]
[341042972,1730301065679,-500.0,0.00035342,5]
[341042973,1730301065688,-650.16,0.00035342,5]
[341042974,1730301065701,-508.69,0.00035342,5]
[341042975,1730301065711,-553.9,0.00035342,5]
[341042976,1730301065720,-500.0,0.00035342,5]
[341042977,1730301065729,-979.14,0.00035342,5]
[341042978,1730301065738,-604.38,0.00035342,30]
[341042979,1730301065747,-500.0,0.00035342,5]
[341042980,1730301065758,-1224.33,0.00035342,5]
[341042981,1730301065768,-500.0,0.00035342,5]
[341042982,1730301065777,-902.67,0.00035342,5]
[341042983,1730301065786,-500.0,0.00035342,5]
[341042984,1730301065796,-778.22,0.00035342,5]
[341042985,1730301065806,-500.0,0.00035342,5]
[341042986,1730301065815,-500.0,0.00035342,5]
[341042987,1730301065825,-500.0,0.00035342,5]
[341042988,1730301065834,-500.0,0.00035342,5]
[341042989,1730301065844,-500.0,0.00035342,5]
[341042990,1730301065853,-500.0,0.00035342,5]
[341042991,1730301065862,-500.0,0.00035342,5]
[341042992,1730301065872,-1335.04,0.00035342,5]
[341042993,1730301065882,-546.12,0.00035342,5]
[341042994,1730301065892,-500.0,0.00035342,5]
[341042995,1730301065902,-813.76,0.00035342,5]
[341042996,1730301065911,-500.0,0.00035342,5]
[341042997,1730301065921,-581.37,0.00035342,5]
[341042998,1730301065930,-500.0,0.00035342,5]
[341042999,1730301065940,-601.11,0.00035342,5]
[341043000,1730301065952,-500.0,0.00035342,5]
[341043001,1730301065962,-500.0,0.00035342,5]
[341043002,1730301065972,-500.0,0.00035342,5]
[341043003,1730301065981,-500.0,0.00035342,5]
[341043004,1730301065991,-500.0,0.00035342,5]
[341043005,1730301066000,-3900.02,0.00035342,5]
[341043006,1730301066010,-500.0,0.00035342,5]
[341043007,1730301066019,-500.0,0.00035342,5]
[341043008,1730301066029,-3956.8,0.00035342,5]
[341043009,1730301066038,-1033.49,0.00035342,5]
[341043010,1730301066048,-2561.17,0.00035342,5]
[341043011,1730301066057,-5020.91,0.00035342,5]
[341043012,1730301066067,-1504.38,0.00035342,5]
[341043013,1730301066077,-169.67,0.00035351,2]
[341043014,1730301066086,-151.65,0.00035351,2]
[341043015,1730301066096,-158.0,0.00035407,5]
[341043016,1730301066105,-2000.0,0.00035438,2]
[341043017,1730301066115,-150.0,0.00035467,7]
[341043018,1730301066125,-150.0,0.000356,120]
[341043019,1730301066134,-542.0,0.00035616,5]
[341043020,1730301066144,-500.0,0.00035616,5]
[341043021,1730301066155,-500.0,0.00035616,5]
[341043022,1730301066164,-500.0,0.00035616,5]
[341043023,1730301066174,-500.0,0.00035616,5]
[341043024,1730301066183,-1139.26,0.00035616,2]
[341043025,1730301066192,-600.73,0.00035616,5]
[341043026,1730301066203,-500.0,0.00035616,5]
[341043027,1730301066217,-879.74,0.00035616,5]
[341043028,1730301066227,-834.42,0.00035616,5]
[341043029,1730301066236,-500.0,0.00035616,5]
[341043030,1730301066244,-500.0,0.00035616,5]
[341043031,1730301066255,-500.0,0.00035616,5]
[341043032,1730301066264,-500.0,0.00035616,5]
[341043033,1730301066274,-500.0,0.00035616,5]
[341043034,1730301066284,-500.0,0.00035616,5]
[341043035,1730301066294,-500.0,0.00035616,5]
[341043036,1730301066304,-541.52,0.00035616,5]
[341043037,1730301066314,-646.69,0.00035616,5]
[341043038,1730301066324,-599.58,0.00035616,5]
[341043039,1730301066335,-739.01,0.00035616,5]
[341043040,1730301066344,-644.7,0.00035616,5]
[341043041,1730301066354,-500.0,0.00035616,5]
[341043042,1730301066366,-610.76,0.00035616,5]
[341043043,1730301066376,-1000.0,0.00035616,120]
[341043044,1730301066388,-500.0,0.00035616,5]
[341043045,1730301066398,-500.0,0.00035616,5]
[341043046,1730301066409,-500.0,0.00035616,5]
[341043047,1730301066420,-500.0,0.00035616,5]
[341043048,1730301066431,-500.0,0.00035616,5]
[341043049,1730301066443,-1213.36,0.00035616,5]
[341043050,1730301066473,-500.0,0.00035616,5]
[341043051,1730301066484,-741.71,0.00035616,5]
[341043052,1730301066496,-500.0,0.00035616,5]
[341043053,1730301066507,-500.0,0.00035616,5]
[341043054,1730301066518,-500.0,0.00035616,5]
[341043055,1730301066529,-791.34,0.00035616,5]
[341043056,1730301066539,-2165.19,0.00035616,5]
[341043057,1730301066550,-2507.94,0.00035616,5]
[341043058,1730301066562,-500.0,0.00035616,5]
[341043059,1730301066574,-556.27,0.00035616,5]
[341043060,1730301066585,-500.0,0.00035616,5]
[341043061,1730301066596,-850.73,0.00035616,5]
[341043062,1730301066608,-500.0,0.00035616,5]
[341043063,1730301066620,-500.0,0.00035616,5]
[341043064,1730301066631,-500.0,0.00035616,5]
[341043065,1730301066642,-500.0,0.00035616,5]
[341043066,1730301066653,-594.99,0.00035616,5]
[341043067,1730301066664,-500.0,0.00035616,5]
[341043068,1730301066679,-500.0,0.00035616,5]
[341043069,1730301066689,-638.53,0.00035616,5]
[341043070,1730301066711,-765.24,0.00035616,5]
[341043071,1730301066723,-500.0,0.00035616,5]
[341043072,1730301066734,-397.16565953,0.00035616,5]